fUST/lending_fUST_20240814
["ID","MTS","AMOUNT","RATE_DAILY","PERIOD"]
[334878472,1723624265345,-500.0,0.00015068,2]
[334878473,1723624265355,-500.0,0.00015068,2]
[334878474,1723624265364,-500.0,0.00015068,2]
[334878475,1723624265373,-636.73,0.00015068,2]
[334878476,1723624265382,-545.81489573,0.00015068,2]
[334878477,1723624265392,-625.85146069,0.00015068,2]
[334878478,1723624265401,-500.0,0.00015068,2]
[334878479,1723624265411,-632.2404493,0.00015068,2]
[334878480,1723624265421,-1693.32,0.00015068,2]
[334878481,1723624265430,-500.0,0.00015068,2]
[334878482,1723624265439,-500.0,0.00015068,2]
[334878483,1723624265449,-433.65520934,0.00015068,2]
[334878484,1723624265458,-500.0,0.00015068,2]
[334878485,1723624265467,-500.0,0.00015068,2]
[334878486,1723624265476,-500.0,0.00015068,2]
[334878487,1723624265485,-500.0,0.00015068,2]
[334878488,1723624265496,-500.0,0.00015068,2]
[334878489,1723624265505,-500.0,0.00015068,2]
[334878490,1723624265514,-500.0,0.00015068,2]
[334878491,1723624265523,-586.95,0.00015068,2]
[334878492,1723624265533,-539.7088332,0.00015068,2]
[334878493,1723624265545,-500.0,0.00015068,2]
[334878494,1723624265558,-500.0,0.00015068,2]
[334878495,1723624265567,-500.0,0.00015068,2]
[334878496,1723624265577,-500.0,0.00015068,2]
[334878497,1723624265586,-521.31,0.00015068,2]
[334878498,1723624265595,-500.0,0.00015068,2]
[334878499,1723624265604,-500.0,0.00015068,2]
[334878500,1723624265615,-500.0,0.00015068,2]
[334878501,1723624265627,-500.0,0.00015068,2]
[334878502,1723624265641,-500.0,0.00015068,2]
[334878503,1723624265653,-500.0,0.00015068,2]
[334878504,1723624265663,-500.0,0.00015068,2]
[334878505,1723624265673,-500.0,0.00015068,2]
[334878506,1723624265686,-746.88,0.00015068,2]
[334878507,1723624265696,-575.46620156,0.00015068,2]
[334878508,1723624265707,-720.49,0.00015068,2]
[334878509,1723624265717,-500.0,0.00015068,2]
[334878510,1723624265729,-879.15,0.00015068,2]
[334878511,1723624265742,-503.45,0.00015068,2]
[334878512,1723624265754,-1225.7,0.00015068,2]
[334878513,1723624265765,-500.0,0.00015068,2]
[334878514,1723624265776,-500.0,0.00015068,2]
[334878515,1723624265786,-1110.32,0.00015068,2]
[334878516,1723624265796,-500.0,0.00015068,2]
[334878517,1723624265807,-609.96,0.00015068,2]
[334878518,1723624265818,-667.18,0.00015068,2]
[334878519,1723624265829,-513.27,0.00015068,2]
[334878520,1723624265839,-500.0,0.00015068,2]
[334878521,1723624265851,-500.0,0.00015068,2]
[334878522,1723624265862,-500.0,0.00015068,2]
[334878523,1723624265873,-500.0,0.00015068,2]
[334878524,1723624265884,-687.75,0.00015068,2]
[334878525,1723624265895,-789.68,0.00015068,2]
[334878526,1723624265906,-493.462411,0.00015068,2]
[334878527,1723624265916,-500.0,0.00015068,2]
[334878528,1723624265925,-725.88,0.00015068,2]
[334878529,1723624265934,-1061.69,0.00015068,2]
[334878530,1723624265943,-500.0,0.00015068,2]
[334878531,1723624265953,-1984.74,0.00015068,2]
[334878532,1723624265962,-596.9,0.00015068,2]
[334878533,1723624265972,-500.0,0.00015068,2]
[334878534,1723624265982,-516.24,0.00015068,2]
[334878535,1723624265993,-863.21,0.00015068,2]
[334878536,1723624266003,-500.0,0.00015068,2]
[334878537,1723624266013,-506.32307795,0.00015068,2]
[334878538,1723624266025,-594.2,0.00015068,2]
[334878539,1723624266035,-500.0,0.00015068,2]
[334878540,1723624266044,-216.79219296,0.00015068,2]
[334878541,1723624266053,-770.78,0.00015068,2]
[334878542,1723624266064,-500.0,0.00015068,2]
[334878543,1723624266074,-706.73,0.00015068,2]
[334878544,1723624266085,-500.0,0.00015068,2]
[334878545,1723624266094,-14459.08,0.00015068,2]
[334878546,1723624266104,-2184.45,0.00015068,2]
[334878547,1723624266113,-500.0,0.00015068,2]
[334878548,1723624266123,-500.0,0.00015068,2]
[334878549,1723624266132,-799.51,0.00015068,2]
[334878550,1723624266142,-942.0,0.00015068,2]
[334878551,1723624266153,-500.0,0.00015068,2]
[334878552,1723624266163,-942.62,0.00015068,2]
[334878553,1723624266174,-759.11,0.00015068,2]
[334878554,1723624266184,-500.0,0.00015068,2]
[334878555,1723624266194,-4552.96,0.00015068,2]
[334878556,1723624266203,-500.0,0.00015068,2]
[334878557,1723624266213,-3173.63,0.00015068,2]
[334878558,1723624266224,-500.0,0.00015068,2]
[334878559,1723624266233,-500.0,0.00015068,2]
[334878560,1723624266244,-500.0,0.00015068,2]
[334878561,1723624266255,-500.0,0.00015068,2]
[334878562,1723624266266,-500.0,0.00015068,2]
[334878563,1723624266277,-500.0,0.00015068,2]
[334878564,1723624266287,-500.0,0.00015068,2]
[334878565,1723624266298,-777.25,0.00015068,2]
[334878566,1723624266309,-500.0,0.00015068,2]
[334878567,1723624266320,-647.32,0.00015068,2]
[334878568,1723624266332,-976.14,0.00015068,2]
[334878569,1723624266343,-500.0,0.00015068,2]
[334878570,1723624266354,-4968.35,0.00015068,2]
[334878571,1723624266365,-465.00142639,0.00015068,2]
[334878572,1723624266374,-500.0,0.00015068,2]
[334878573,1723624266385,-1028.65,0.00015068,2]
[334878574,1723624266395,-507.17426552,0.00015068,2]
[334878575,1723624266405,-1429.54,0.00015068,2]
[334878576,1723624266417,-1070.11,0.00015068,2]
[334878577,1723624266427,-151.0,0.00015089,2]
[334878578,1723624266438,-178.121495,0.00015164,2]
[334878579,1723624266448,-193.608412,0.00015164,2]
[334878580,1723624266460,-1000.0,0.00015232,2]
[334878581,1723624266471,-152.62142917,0.00015342,2]
[334878582,1723624266482,-500.0,0.00015342,2]
[334878583,1723624266492,-500.0,0.00015342,2]
[334878584,1723624266503,-158.65136535,0.00015342,2]
[334878585,1723624266512,-500.0,0.00015342,2]
[334878586,1723624266524,-636.73,0.00015342,2]
[334878587,1723624266535,-500.0,0.00015342,2]
[334878588,1723624266545,-1693.32,0.00015342,2]
[334878589,1723624266555,-414.84880067,0.00015342,2]
[334878590,1723624266565,-500.0,0.00015342,2]
[334878591,1723624266575,-500.0,0.00015342,2]
[334878592,1723624266585,-500.0,0.00015342,2]
[334878593,1723624266596,-500.0,0.00015342,2]
[334878594,1723624266607,-500.0,0.00015342,2]
[334878595,1723624266618,-458.73288378,0.00015342,2]
[334878596,1723624266629,-500.0,0.00015342,2]
[334878597,1723624266643,-500.0,0.00015342,2]
[334878598,1723624266654,-586.95,0.00015342,2]
[334878599,1723624266666,-500.0,0.00015342,2]
[334878600,1723624266678,-500.0,0.00015342,2]
[334878601,1723624266690,-500.0,0.00015342,2]
[334878602,1723624266700,-500.0,0.00015342,2]
[334878603,1723624266711,-521.31,0.00015342,2]
[334878604,1723624266724,-500.0,0.00015342,2]
[334878605,1723624266734,-500.0,0.00015342,2]
[334878606,1723624266745,-500.0,0.00015342,2]
[334878607,1723624266756,-500.0,0.00015342,2]
[334878608,1723624266766,-500.0,0.00015342,2]
[334878609,1723624266777,-259.75324874,0.00015342,2]
[334878610,1723624266788,-500.0,0.00015342,2]
[334878611,1723624266799,-500.0,0.00015342,2]
[334878612,1723624266809,-746.88,0.00015342,2]
[334878613,1723624266822,-720.49,0.00015342,2]
[334878614,1723624266833,-500.0,0.00015342,2]
[334878615,1723624266844,-879.15,0.00015342,2]
[334878616,1723624266854,-503.45,0.00015342,2]
[334878617,1723624266864,-1225.7,0.00015342,2]
[334878618,1723624266874,-500.0,0.00015342,2]
[334878619,1723624266886,-500.0,0.00015342,2]
[334878620,1723624266897,-1110.32,0.00015342,2]
[334878621,1723624266906,-500.0,0.00015342,2]
[334878622,1723624266916,-609.96,0.00015342,2]
[334878623,1723624266925,-667.18,0.00015342,2]
[334878624,1723624266934,-513.27,0.00015342,2]
[334878625,1723624266945,-500.0,0.00015342,2]
[334878626,1723624266955,-500.0,0.00015342,2]
[334878627,1723624266964,-500.0,0.00015342,2]
[334878628,1723624266974,-192.17685603,0.00015342,2]
[334878629,1723624266984,-687.75,0.00015342,2]
[334878630,1723624266995,-789.68,0.00015342,2]
[334878631,1723624267005,-500.0,0.00015342,2]
[334878632,1723624267017,-725.88,0.00015342,2]
[334878633,1723624267030,-1061.69,0.00015342,2]
[334878634,1723624267042,-500.0,0.00015342,2]
[334878635,1723624267054,-1984.74,0.00015342,2]
[334878636,1723624267066,-596.9,0.00015342,2]
[334878637,1723624267078,-516.24,0.00015342,2]
[334878638,1723624267088,-500.0,0.00015342,2]
[334878639,1723624267099,-863.21,0.00015342,2]
[334878640,1723624267109,-500.0,0.00015342,2]
[334878641,1723624267200,-594.2,0.00015342,2]
[334878642,1723624267210,-500.0,0.00015342,2]
[334878643,1723624267219,-770.78,0.00015342,2]
[334878644,1723624267229,-500.0,0.00015342,2]
[334878645,1723624267238,-706.73,0.00015342,2]
[334878646,1723624267248,-14459.08,0.00015342,2]
[334878647,1723624267257,-500.0,0.00015342,2]
[334878648,1723624267267,-2184.45,0.00015342,2]
[334878649,1723624267277,-500.0,0.00015342,2]
[334878650,1723624267288,-500.0,0.00015342,2]
[334878651,1723624267298,-799.51,0.00015342,2]
[334878652,1723624267309,-942.0,0.00015342,2]
[334878653,1723624267320,-500.0,0.00015342,2]
[334878654,1723624267329,-942.62,0.00015342,2]
[334878655,1723624267338,-759.11,0.00015342,2]
[334878656,1723624267347,-500.0,0.00015342,2]
[334878657,1723624267357,-4552.96,0.00015342,2]
[334878658,1723624267367,-500.0,0.00015342,2]
[334878659,1723624267376,-3173.63,0.00015342,2]
[334878660,1723624267386,-507.4392915,0.00015342,2]
[334878661,1723624267395,-500.0,0.00015342,2]
[334878662,1723624267405,-500.0,0.00015342,2]
[334878663,1723624267416,-500.0,0.00015342,2]
[334878664,1723624267427,-500.0,0.00015342,2]
[334878665,1723624267436,-500.0,0.00015342,2]
[334878666,1723624267445,-500.0,0.00015342,2]
[334878667,1723624267453,-777.25,0.00015342,2]
[334878668,1723624267462,-500.0,0.00015342,2]
[334878669,1723624267472,-647.32,0.00015342,2]
[334878670,1723624267482,-976.14,0.00015342,2]
[334878671,1723624267492,-500.0,0.00015342,2]
[334878672,1723624267502,-4968.35,0.00015342,2]
[334878673,1723624267513,-638.56117203,0.00015342,2]
[334878674,1723624267523,-1028.65,0.00015342,2]
[334878675,1723624267536,-1429.54,0.00015342,2]
[334878676,1723624267545,-1070.11,0.00015342,2]
[334878677,1723624267557,-178.121495,0.00015348,2]
[334878678,1723624267567,-193.608412,0.00015348,2]
[334878679,1723624267579,-2225.0,0.00015469,2]
[334878680,1723624267589,-1000.0,0.00015506,2]
[334878681,1723624267599,-178.121495,0.00015533,2]
[334878682,1723624267609,-193.608412,0.00015533,2]
[334878683,1723624267619,-167.74534,0.00015533,2]
[334878684,1723624267628,-1685.22387471,0.00015598,2]
[334878685,1723624267638,-500.0,0.00015616,2]
[334878686,1723624267653,-500.0,0.00015616,2]
[334878687,1723624267663,-500.0,0.00015616,2]
[334878688,1723624267673,-636.73,0.00015616,2]
[334878689,1723624267682,-500.0,0.00015616,2]
[334878690,1723624267694,-1693.32,0.00015616,2]
[334878691,1723624267705,-500.0,0.00015616,2]
[334878692,1723624267715,-500.0,0.00015616,2]
[334878693,1723624267729,-500.0,0.00015616,2]
[334878694,1723624267739,-500.0,0.00015616,2]
[334878695,1723624267751,-500.0,0.00015616,2]
[334878696,1723624267763,-500.0,0.00015616,2]
[334878697,1723624267774,-500.0,0.00015616,2]
[334878698,1723624267784,-586.95,0.00015616,2]
[334878699,1723624267796,-500.0,0.00015616,2]
[334878700,1723624267807,-500.0,0.00015616,2]
[334878701,1723624267818,-500.0,0.00015616,2]
[334878702,1723624267829,-500.0,0.00015616,2]
[334878703,1723624267840,-521.31,0.00015616,2]
[334878704,1723624267851,-500.0,0.00015616,2]
[334878705,1723624267861,-500.0,0.00015616,2]
[334878706,1723624267872,-500.0,0.00015616,2]
[334878707,1723624267885,-500.0,0.00015616,2]
[334878708,1723624267894,-500.0,0.00015616,2]
[334878709,1723624267905,-500.0,0.00015616,2]
[334878710,1723624267914,-500.0,0.00015616,2]
[334878711,1723624267923,-746.88,0.00015616,2]
[334878712,1723624267932,-720.49,0.00015616,2]
[334878713,1723624267941,-500.0,0.00015616,2]
[334878714,1723624267950,-879.15,0.00015616,2]
[334878715,1723624267959,-503.45,0.00015616,2]
[334878716,1723624267968,-1225.7,0.00015616,2]
[334878717,1723624267977,-500.0,0.00015616,2]
[334878718,1723624267986,-500.0,0.00015616,2]
[334878719,1723624267996,-1110.32,0.00015616,2]
[334878720,1723624268005,-500.0,0.00015616,2]
[334878721,1723624268015,-609.96,0.00015616,2]
[334878722,1723624268025,-667.18,0.00015616,2]
[334878723,1723624268035,-513.27,0.00015616,2]
[334878724,1723624268045,-500.0,0.00015616,2]
[334878725,1723624268056,-500.0,0.00015616,2]
[334878726,1723624268067,-500.0,0.00015616,2]
[334878727,1723624268076,-687.75,0.00015616,2]
[334878728,1723624268086,-789.68,0.00015616,2]
[334878729,1723624268095,-500.0,0.00015616,2]
[334878730,1723624268106,-725.88,0.00015616,2]
[334878731,1723624268117,-1061.69,0.00015616,2]
[334878732,1723624268129,-500.0,0.00015616,2]
[334878733,1723624268140,-1984.74,0.00015616,2]
[334878734,1723624268153,-596.9,0.00015616,2]
[334878735,1723624268163,-516.24,0.00015616,2]
[334878736,1723624268174,-355.16429388,0.00015616,2]
[334878737,1723624268183,-863.21,0.00015616,2]
[334878738,1723624268194,-500.0,0.00015616,2]
[334878739,1723624268205,-594.2,0.00015616,2]
[334878740,1723624268215,-500.0,0.00015616,2]
[334878741,1723624268227,-770.78,0.00015616,2]
[334878742,1723624268237,-500.0,0.00015616,2]
[334878743,1723624268247,-706.73,0.00015616,2]
[334878744,1723624268258,-14459.08,0.00015616,2]
[334878745,1723624268268,-500.0,0.00015616,2]
[334878746,1723624268279,-2184.45,0.00015616,2]
[334878747,1723624268290,-500.0,0.00015616,2]
[334878748,1723624268300,-257.84705382,0.00015616,2]
[334878749,1723624268311,-722.76730205,0.00015616,2]
[334878752,1723624382829,200.0,7.859e-05,2]
[334878754,1723624453134,1415.09247004,7.859e-05,2]
[334878755,1723624589935,20009.67,0.0002355,49]
[334878758,1723624974114,2010.9396659,6.975e-05,2]
[334878759,1723625098759,24900.0,7.397e-05,2]
[334878765,1723625196054,254.1434,6.911e-05,2]
[334878767,1723625329861,250.0,6.96e-05,2]
[334878768,1723625330077,250.0,6.98e-05,2]
[334878769,1723625330282,250.0,6.999e-05,2]
[334878770,1723625330501,250.0,7.018e-05,2]
[334878771,1723625330714,250.0,7.037e-05,2]
[334878772,1723625330919,250.0,7.056e-05,2]
[334878773,1723625331126,250.0,7.075e-05,2]
[334878774,1723625331379,250.0,7.094e-05,2]
[334878775,1723625331586,250.0,7.113e-05,2]
[334878776,1723625331775,250.0,7.132e-05,2]
[334878777,1723625331994,250.0,7.151e-05,2]
[334878778,1723625332216,250.0,7.17e-05,2]
[334878779,1723625332423,250.0,7.19e-05,2]
[334878780,1723625332644,250.0,7.209e-05,2]
[334878781,1723625332840,250.0,7.228e-05,2]
[334878782,1723625333049,250.0,7.247e-05,2]
[334878783,1723625333425,250.0,7.266e-05,2]
[334878784,1723625333501,250.0,7.285e-05,2]
[334878785,1723625333722,250.0,7.304e-05,2]
[334878786,1723625334089,250.0,7.323e-05,2]
[334878791,1723625343664,303.5521163,7.802e-05,2]
[334878792,1723625366508,154.76012181,7.9e-05,2]
[334878793,1723625373745,342.47979758,7.9e-05,2]
[334878794,1723625376529,154.76012181,7.9e-05,2]
[334878795,1723625376913,284.16424637,7.9e-05,2]
[334878796,1723625380265,809.65861321,7.9e-05,2]
[334878797,1723625400781,191.85387539,7.9e-05,2]
[334878798,1723625401193,300.0,7.9e-05,2]
[334878825,1723625432115,-543.73594479,7.901e-05,2]
[334878827,1723625432137,-170.99895099,7.901e-05,2]
[334878832,1723625436941,309.67712516,7.9e-05,2]
[334878848,1723625438114,-82.72329548,7.901e-05,2]
[334878849,1723625438125,-7010.23526088,7.901e-05,2]
[334878850,1723625438134,-154.87806633,7.901e-05,2]
[334878851,1723625438143,-1718.91670259,7.901e-05,2]
[334878852,1723625438152,-154.76012181,7.901e-05,2]
[334878853,1723625438162,-309.67712516,7.902e-05,2]
[334878854,1723625438178,-7010.23526088,7.902e-05,2]
[334878855,1723625438187,-154.76012181,7.902e-05,2]
[334878856,1723625438197,-154.76012181,7.903e-05,2]
[334878857,1723625438206,-154.76012181,7.904e-05,2]
[334878858,1723625438216,-154.76012181,7.905e-05,2]
[334878859,1723625438226,-200.0,7.91e-05,2]
[334878860,1723625438235,-200.11566079,7.91e-05,2]
[334878861,1723625438245,-200.0,7.91e-05,2]
[334878862,1723625438254,-200.0,7.91e-05,2]
[334878863,1723625438264,-55442.34208291,7.911e-05,2]
[334878864,1723625438273,-42392.12136225,7.912e-05,2]
[334878865,1723625438282,-200.0,7.92e-05,2]
[334878866,1723625438292,-200.0,7.93e-05,2]
[334878867,1723625438302,-162.56681124,7.958e-05,2]
[334878868,1723625438311,-420.0,8.69e-05,2]
[334878869,1723625438321,-400.0,9.28e-05,2]
[334878870,1723625438330,-2165.20291982,9.289e-05,2]
[334878871,1723625438340,-400.0,9.29e-05,2]
[334878872,1723625438350,-396.47111262,9.3e-05,2]
[334878873,1723625438359,-271.93780607,9.309e-05,2]
[334878874,1723625438369,-156.39605115,9.457e-05,2]
[334878875,1723625438378,-255.10499635,9.457e-05,2]
[334878876,1723625438388,-344.69813246,9.457e-05,2]
[334878877,1723625438397,-809.65861321,9.457e-05,2]
[334878878,1723625438407,-587.0,9.559e-05,2]
[334878879,1723625438417,-3151.40948392,9.599e-05,2]
[334878880,1723625438426,-661.09964631,0.0001,2]
[334878881,1723625438435,-2281.22061085,0.00010514,3]
[334878882,1723625438445,-823.0,0.00010515,2]
[334878883,1723625438455,-810.98237385,0.00010958,2]
[334878884,1723625438465,-1205.81,0.00010959,2]
[334878885,1723625438476,-600.0,0.00011283,2]
[334878886,1723625438486,-600.0,0.00011293,2]
[334878887,1723625438496,-1152.0,0.00011566,2]
[334878888,1723625438505,-195.500502,0.00011641,2]
[334878889,1723625438515,-195.500502,0.0001167,2]
[334878890,1723625438525,-195.500502,0.00011699,2]
[334878891,1723625438534,-115455.203158,0.000119,2]
[334878892,1723625438543,-3178.4050663,0.000119,2]
[334878893,1723625438552,-1000.0,0.00012,12]
[334878894,1723625438561,-3178.40506627,0.00012146,2]
[334878895,1723625438572,-1000.0,0.00012328,2]
[334878896,1723625438581,-1000.0,0.00012356,2]
[334878897,1723625438591,-1000.0,0.00012383,2]
[334878898,1723625438601,-3178.40506627,0.00012391,2]
[334878899,1723625438610,-1000.0,0.0001241,2]
[334878900,1723625438621,-1000.0,0.00012438,2]
[334878901,1723625438630,-1000.0,0.00012465,2]
[334878902,1723625438639,-1000.0,0.00012493,2]
[334878903,1723625438649,-1000.0,0.0001252,2]
[334878904,1723625438658,-1000.0,0.00012547,2]
[334878905,1723625438668,-1000.0,0.00012575,2]
[334878906,1723625438677,-40770.68677211,0.00012592,2]
[334878907,1723625438687,-115455.203158,0.00012592,2]
[334878908,1723625438696,-1114.25211996,0.00012602,2]
[334878909,1723625438706,-3178.40506627,0.00012637,2]
[334878910,1723625438715,-1201.0,0.00012723,2]
[334878911,1723625438725,-534.58678596,0.00012725,2]
[334878912,1723625438734,-115455.203158,0.00012813,2]
[334878913,1723625438744,-167.74534,0.00012823,2]
[334878914,1723625438757,-183.65284,0.00012823,2]
[334878915,1723625438767,-180.225871,0.00012823,2]
[334878916,1723625438779,-167.319093,0.00012823,2]
[334878917,1723625438788,-198.243425,0.00012823,2]
[334878918,1723625438797,-180.09682,0.00012823,2]
[334878919,1723625438807,-193.608414,0.00012823,2]
[334878920,1723625438818,-178.121495,0.00012823,2]
[334878921,1723625438830,-178.121495,0.00012823,2]
[334878922,1723625438840,-193.608412,0.00012823,2]
[334878923,1723625438852,-178.963813,0.00012823,2]
[334878924,1723625438862,-193.512589,0.00012823,2]
[334878925,1723625438873,-167.74534,0.00012823,2]
[334878926,1723625438883,-193.608412,0.00012823,2]
[334878927,1723625438892,-161.495231,0.00012823,2]
[334878928,1723625438903,-3178.40506627,0.00012882,2]
[334878929,1723625438914,-946.33267843,0.00012982,2]
[334878930,1723625438926,-205.44316841,0.00012982,2]
[334878931,1723625438937,-161.495231,0.00012983,2]
[334878932,1723625438947,-223.40672649,0.00012985,2]
[334878933,1723625438957,-500.0,0.00012986,2]
[334878934,1723625438967,-4000.0,0.00013,13]
[334878935,1723625438978,-180.225871,0.00013037,2]
[334878936,1723625438988,-183.65284,0.00013144,2]
[334878937,1723625438998,-180.09682,0.00013144,2]
[334878938,1723625439009,-178.963813,0.00013144,2]
[334878939,1723625439022,-193.512589,0.00013144,2]
[334878940,1723625439032,-161.495231,0.00013144,2]
[334878941,1723625439044,-180.225871,0.0001325,2]
[334878942,1723625439055,-161.495231,0.00013304,2]
[334878943,1723625439065,-9435.70289252,0.00013463,2]
[334878944,1723625439074,-198.243425,0.00013464,2]
[334878945,1723625439083,-193.608412,0.00013464,2]
[334878946,1723625439093,-183.65284,0.00013464,2]
[334878947,1723625439104,-180.225871,0.00013464,2]
[334878948,1723625439114,-180.09682,0.00013464,2]
[334878949,1723625439125,-178.963813,0.00013464,2]
[334878950,1723625439135,-193.512589,0.00013464,2]
[334878951,1723625439145,-161.495231,0.00013464,2]
[334878952,1723625439154,-301.37434502,0.00013508,2]
[334878953,1723625439163,-196.71565749,0.00013508,2]
[334878954,1723625439174,-301.37434502,0.00013508,2]
[334878955,1723625439336,-933.35147554,0.00013508,2]
[334878956,1723625439348,-1765.67532584,0.00013508,2]
[334878957,1723625439359,-1731.86061291,0.00013509,2]
[334878958,1723625439369,-602.51383505,0.00013509,2]
[334878959,1723625439388,-115455.203158,0.0001351,2]
[334878960,1723625439400,-21049.16512642,0.0001352,2]
[334878961,1723625439421,-14390.37710966,0.0001352,2]
[334878962,1723625439434,-288.50492,0.0001352,2]
[334878972,1723625440039,-45011.68256846,0.0001352,2]
[334878973,1723625440049,-569.2097652,0.0001353,2]
[334878974,1723625440059,-154.76012181,0.0001353,2]
[334878975,1723625440068,-192.3962469,0.00013531,2]
[334878976,1723625440077,-157.02043595,0.00013531,2]
[334878977,1723625440087,-1612.67783737,0.00013531,2]
[334878978,1723625440096,-8840.23662851,0.00013532,2]
[334878979,1723625440107,-154.86409299,0.00013532,2]
[334878980,1723625440117,-154.76012181,0.00013532,2]
[334878981,1723625440127,-180.94857555,0.00013532,2]
[334878982,1723625440136,-156.89724506,0.00013532,2]
[334878983,1723625440146,-2711.31124135,0.00013533,2]
[334878984,1723625440155,-160.3458083,0.00013533,2]
[334878985,1723625440164,-154.76012181,0.00013533,2]
[334878986,1723625440174,-2711.31124135,0.00013533,2]
[334878987,1723625440183,-2141.83182523,0.00013582,2]
[334878988,1723625440192,-2141.83182523,0.00013582,2]
[334878989,1723625440202,-2127.07450646,0.00013582,2]
[334878990,1723625440211,-9654.55565372,0.00013583,2]
[334878991,1723625440220,-1500.0,0.00013584,2]
[334878992,1723625440230,-20784.67491515,0.00013584,2]
[334878993,1723625440239,-508.05143041,0.00013596,2]
[334878994,1723625440248,-189.98027671,0.00013596,2]
[334878995,1723625440257,-154.9231882,0.00013596,2]
[334878996,1723625440267,-404.2385044,0.00013597,2]
[334878997,1723625440276,-304.07412774,0.00013597,2]
[334878998,1723625440285,-404.2385044,0.00013597,2]
[334878999,1723625440294,-728.43490027,0.00013598,2]
[334879000,1723625440304,-320.11477808,0.000136,2]
[334879001,1723625440313,-188.0,0.00013612,2]
[334879002,1723625440322,-188.0,0.00013612,2]
[334879003,1723625440331,-188.0,0.00013612,2]
[334879004,1723625440341,-188.0,0.00013612,2]
[334879005,1723625440350,-188.0,0.00013612,2]
[334879006,1723625440359,-188.0,0.00013612,2]
[334879007,1723625440369,-188.0,0.00013612,2]
[334879008,1723625440380,-188.0,0.00013612,2]
[334879009,1723625440389,-188.0,0.00013612,2]
[334879010,1723625440399,-188.0,0.00013612,2]
[334879011,1723625440408,-188.0,0.00013612,2]
[334879012,1723625440417,-188.0,0.00013612,2]
[334879013,1723625440427,-188.0,0.00013612,2]
[334879014,1723625440437,-188.0,0.00013612,2]
[334879015,1723625440447,-360.0,0.00013612,2]
[334879016,1723625440456,-360.0,0.00013612,2]
[334879017,1723625440467,-360.0,0.00013612,2]
[334879018,1723625440478,-360.0,0.00013612,2]
[334879019,1723625440487,-360.0,0.00013612,2]
[334879020,1723625440498,-360.0,0.00013612,2]
[334879021,1723625440507,-360.0,0.00013612,2]
[334879022,1723625440516,-360.0,0.00013612,2]
[334879023,1723625440525,-360.0,0.00013612,2]
[334879024,1723625440535,-360.0,0.00013612,2]
[334879025,1723625440544,-360.0,0.00013612,2]
[334879026,1723625440553,-360.0,0.00013612,2]
[334879027,1723625440562,-360.0,0.00013612,2]
[334879028,1723625440572,-360.0,0.00013612,2]
[334879029,1723625440581,-188.0,0.00013612,2]
[334879030,1723625440590,-188.0,0.00013612,2]
[334879031,1723625440599,-188.0,0.00013612,2]
[334879032,1723625440608,-188.0,0.00013612,2]
[334879033,1723625440618,-188.0,0.00013612,2]
[334879034,1723625440630,-188.0,0.00013612,2]
[334879035,1723625440641,-188.0,0.00013612,2]
[334879036,1723625440651,-188.0,0.00013612,2]
[334879037,1723625440662,-188.0,0.00013612,2]
[334879038,1723625440673,-188.0,0.00013612,2]
[334879039,1723625440685,-188.0,0.00013612,2]
[334879040,1723625440695,-188.0,0.00013612,2]
[334879041,1723625440705,-188.0,0.00013612,2]